[Event "Late Titled Tuesday Blitz February 8 2022"]
[White "Stanisz, Patryk"]
[Black "Debray, Christopher"]
[WhiteFideId "1123106"]
[BlackFideId "630810"]
[WhiteElo "1876"]
[BlackElo "2369"]
[Result "1/2-1/2"]
[Round "07"]
[TimeControl "180+1"]
[Date "2022.02.09"]
[WhiteClock "0:00:06"]
[BlackClock "0:00:52"]

1. Nf3 {[%clk 0:03:00]}  d5 {[%clk 0:02:56]} 2. g3 {[%clk 0:02:58]}  Bf5 {[%clk 0:02:53]} 3. Bg2 {[%clk 0:02:58]}  Nf6 {[%clk 0:02:54]} 4. c4 {[%clk 0:02:56]}  e6 {[%clk 0:02:54]} 5. O-O {[%clk 0:02:56]}  c6 {[%clk 0:02:55]} 6. b3 {[%clk 0:02:52]}  Nbd7 {[%clk 0:02:55]} 7. Bb2 {[%clk 0:02:53]}  Be7 {[%clk 0:02:56]} 8. d3 {[%clk 0:02:50]}  O-O {[%clk 0:02:56]} 9. Nbd2 {[%clk 0:02:50]}  Bg6 {[%clk 0:02:56]} 10. Ne5 {[%clk 0:02:48]}  Qc7 {[%clk 0:02:48]} 11. Nxg6 {[%clk 0:02:47]}  hxg6 {[%clk 0:02:49]} 12. e4 {[%clk 0:02:47]}  dxe4 {[%clk 0:02:37]} 13. dxe4 {[%clk 0:02:45]}  Rfd8 {[%clk 0:02:35]} 14. Qe2 {[%clk 0:02:39]}  Nc5 {[%clk 0:02:30]} 15. Rad1 {[%clk 0:02:20]}  e5 {[%clk 0:02:25]} 16. f4 {[%clk 0:02:09]}  Nd3 {[%clk 0:02:25]} 17. Ba1 {[%clk 0:01:59]}  exf4 {[%clk 0:02:14]} 18. e5 {[%clk 0:01:59]}  Nh5 {[%clk 0:01:54]} 19. g4 {[%clk 0:01:35]}  f3 {[%clk 0:01:41]} 20. Qxf3 {[%clk 0:01:33]}  Nhf4 {[%clk 0:01:37]} 21. Ne4 {[%clk 0:01:25]}  g5 {[%clk 0:01:32]} 22. h4 {[%clk 0:01:22]}  Nxe5 {[%clk 0:01:18]} 23. Bxe5 {[%clk 0:01:09]}  Qxe5 {[%clk 0:01:19]} 24. Rxd8+ {[%clk 0:01:05]}  Rxd8 {[%clk 0:01:18]} 25. hxg5 {[%clk 0:01:06]}  Nxg2 {[%clk 0:00:53]} 26. Qxf7+ {[%clk 0:00:45]}  Kh8 {[%clk 0:00:52]} 27. Qh5+ {[%clk 0:00:45]}  Kg8 {[%clk 0:00:52]} 28. Qf7+ {[%clk 0:00:21]}  Kh8 {[%clk 0:00:52]} 29. Qh5+ {[%clk 0:00:06]}  Kg8 {[%clk 0:00:52]} 30. Qf7+ {[%clk 0:00:06]} 1/2-1/2


[Site "https://www.chess.com"]

[Event "Late Titled Tuesday Blitz February 8 2022"]
[White "Sviridov, Valery"]
[Black "Indjic, Aleksandar"]
[WhiteFideId "4120680"]
[BlackFideId "911925"]
[WhiteElo "2454"]
[BlackElo "2616"]
[Result "1-0"]
[Round "07"]
[TimeControl "180+1"]
[Date "2022.02.08"]
[WhiteClock "0:01:12"]
[BlackClock "0:00:29"]

1. g3 {[%clk 0:03:00]}  d5 {[%clk 0:02:56]} 2. Nf3 {[%clk 0:03:00]}  Nc6 {[%clk 0:02:55]} 3. d4 {[%clk 0:02:59]}  Bf5 {[%clk 0:02:55]} 4. Bg2 {[%clk 0:02:58]}  Nb4 {[%clk 0:02:55]} 5. Na3 {[%clk 0:02:57]}  e6 {[%clk 0:02:55]} 6. O-O {[%clk 0:02:56]}  h5 {[%clk 0:02:55]} 7. c4 {[%clk 0:02:53]}  c6 {[%clk 0:02:51]} 8. Qb3 {[%clk 0:02:39]}  a5 {[%clk 0:02:50]} 9. h4 {[%clk 0:02:30]}  Nf6 {[%clk 0:02:44]} 10. Bf4 {[%clk 0:02:30]}  Be7 {[%clk 0:02:33]} 11. Rfc1 {[%clk 0:02:30]}  O-O {[%clk 0:02:32]} 12. Qd1 {[%clk 0:02:28]}  Ne4 {[%clk 0:02:21]} 13. Nc2 {[%clk 0:02:22]}  Nxc2 {[%clk 0:02:17]} 14. Rxc2 {[%clk 0:02:23]}  Nd6 {[%clk 0:02:04]} 15. Bxd6 {[%clk 0:02:19]}  Bxd6 {[%clk 0:01:58]} 16. Rcc1 {[%clk 0:02:17]}  Qf6 {[%clk 0:01:56]} 17. Qb3 {[%clk 0:02:10]}  Rab8 {[%clk 0:01:54]} 18. Qc3 {[%clk 0:02:08]}  Ra8 {[%clk 0:01:47]} 19. e3 {[%clk 0:02:03]}  Rfd8 {[%clk 0:01:42]} 20. Ng5 {[%clk 0:02:02]}  Qg6 {[%clk 0:01:41]} 21. Qb3 {[%clk 0:01:52]}  Rd7 {[%clk 0:01:39]} 22. Qd1 {[%clk 0:01:33]}  Bd3 {[%clk 0:01:35]} 23. cxd5 {[%clk 0:01:30]}  exd5 {[%clk 0:01:30]} 24. Bf3 {[%clk 0:01:31]}  Bf5 {[%clk 0:01:24]} 25. Bxh5 {[%clk 0:01:31]}  Qf6 {[%clk 0:01:24]} 26. Bg4 {[%clk 0:01:31]}  Re8 {[%clk 0:01:23]} 27. Qf3 {[%clk 0:01:27]}  Bxg4 {[%clk 0:01:22]} 28. Qxg4 {[%clk 0:01:28]}  Rde7 {[%clk 0:01:20]} 29. Kg2 {[%clk 0:01:28]}  Qg6 {[%clk 0:01:14]} 30. h5 {[%clk 0:01:26]}  Qh6 {[%clk 0:01:14]} 31. Rh1 {[%clk 0:01:23]}  Kf8 {[%clk 0:00:54]} 32. Qf5 {[%clk 0:01:21]}  Kg8 {[%clk 0:00:53]} 33. Rae1 {[%clk 0:01:20]}  Bb4 {[%clk 0:00:50]} 34. Rd1 {[%clk 0:01:19]}  Bd6 {[%clk 0:00:49]} 35. b3 {[%clk 0:01:18]}  Rd8 {[%clk 0:00:44]} 36. Rh4 {[%clk 0:01:17]}  Rde8 {[%clk 0:00:43]} 37. Rg4 {[%clk 0:01:15]}  Rc7 {[%clk 0:00:31]} 38. Rh1 {[%clk 0:01:14]}  Be7 {[%clk 0:00:29]} 39. Qxf7+ {[%clk 0:01:12]} 1-0


[Site "https://www.chess.com"]

[Event "Late Titled Tuesday Blitz February 8 2022"]
[White "Tang, Andrew"]
[Black "Kopylov, Alexander A."]
[WhiteFideId "2059630"]
[BlackFideId "4164857"]
[WhiteElo "2584"]
[BlackElo "2436"]
[Result "1-0"]
[Round "07"]
[TimeControl "180+1"]
[Date "2022.02.08"]
[WhiteClock "0:00:49"]
[BlackClock "0:01:31"]

1. d4 {[%clk 0:03:00]}  Nf6 {[%clk 0:02:58]} 2. c4 {[%clk 0:03:00]}  g6 {[%clk 0:02:58]} 3. f3 {[%clk 0:03:00]}  Bg7 {[%clk 0:02:58]} 4. e4 {[%clk 0:03:00]}  O-O {[%clk 0:02:58]} 5. Nc3 {[%clk 0:03:00]}  d6 {[%clk 0:02:58]} 6. Nge2 {[%clk 0:03:00]}  Nc6 {[%clk 0:02:57]} 7. Be3 {[%clk 0:03:00]}  a6 {[%clk 0:02:54]} 8. Qd2 {[%clk 0:02:50]}  Na5 {[%clk 0:02:54]} 9. Nc1 {[%clk 0:02:48]}  b5 {[%clk 0:02:48]} 10. cxb5 {[%clk 0:02:43]}  axb5 {[%clk 0:02:48]} 11. Bxb5 {[%clk 0:02:44]}  c6 {[%clk 0:02:48]} 12. Be2 {[%clk 0:02:36]}  e5 {[%clk 0:02:48]} 13. dxe5 {[%clk 0:02:26]}  dxe5 {[%clk 0:02:47]} 14. Qxd8 {[%clk 0:02:26]}  Rxd8 {[%clk 0:02:46]} 15. Bb6 {[%clk 0:01:41]}  Rd7 {[%clk 0:02:43]} 16. b4 {[%clk 0:01:41]}  Nb7 {[%clk 0:02:33]} 17. a4 {[%clk 0:01:37]}  Ne8 {[%clk 0:01:38]} 18. a5 {[%clk 0:01:24]}  Nc7 {[%clk 0:01:36]} 19. Nd3 {[%clk 0:01:17]}  Ne6 {[%clk 0:01:34]} 20. a6 {[%clk 0:01:10]}  Nd4 {[%clk 0:01:31]} 21. axb7 {[%clk 0:00:49]} 1-0


[Site "https://www.chess.com"]

[Event "Late Titled Tuesday Blitz February 8 2022"]
[White "Terletsky, Oleg"]
[Black "Gerbelli Neto, Eduardo"]
[WhiteFideId "14116774"]
[BlackFideId "2103281"]
[WhiteElo "2050"]
[BlackElo "2178"]
[Result "1-0"]
[Round "07"]
[TimeControl "180+1"]
[Date "2022.02.09"]
[WhiteClock "0:02:56"]
[BlackClock "0:02:20"]

1. e4 {[%clk 0:03:00]}  e5 {[%clk 0:02:56]} 2. Nf3 {[%clk 0:03:00]}  Nc6 {[%clk 0:02:51]} 3. Nc3 {[%clk 0:03:01]}  Nf6 {[%clk 0:02:50]} 4. d4 {[%clk 0:03:01]}  exd4 {[%clk 0:02:51]} 5. Nxd4 {[%clk 0:03:02]}  Bb4 {[%clk 0:02:51]} 6. Nxc6 {[%clk 0:03:02]}  bxc6 {[%clk 0:02:52]} 7. Bd3 {[%clk 0:03:03]}  d5 {[%clk 0:02:52]} 8. exd5 {[%clk 0:03:03]}  cxd5 {[%clk 0:02:53]} 9. O-O {[%clk 0:03:03]}  O-O {[%clk 0:02:53]} 10. Bg5 {[%clk 0:03:04]}  c6 {[%clk 0:02:54]} 11. Qf3 {[%clk 0:03:04]}  Be7 {[%clk 0:02:53]} 12. Rae1 {[%clk 0:03:03]}  h6 {[%clk 0:02:52]} 13. Bxh6 {[%clk 0:03:03]}  gxh6 {[%clk 0:02:51]} 14. Qe3 {[%clk 0:03:03]}  Be6 {[%clk 0:02:52]} 15. Qxh6 {[%clk 0:03:02]}  Re8 {[%clk 0:02:46]} 16. Re5 {[%clk 0:02:57]}  Bf8 {[%clk 0:02:19]} 17. Rg5+ {[%clk 0:02:56]}  Bg7 {[%clk 0:02:20]} 18. Qxg7# {[%clk 0:02:56]} 1-0


[Site "https://www.chess.com"]

[Event "Late Titled Tuesday Blitz February 8 2022"]
[White "Villegas, Pierre"]
[Black "Baches Garcia, Guillermo"]
[WhiteFideId "654183"]
[BlackFideId "2209764"]
[WhiteElo "2410"]
[BlackElo "2442"]
[Result "1/2-1/2"]
[Round "07"]
[TimeControl "180+1"]
[Date "2022.02.09"]
[WhiteClock "0:00:05"]
[BlackClock "0:00:07"]

1. d4 {[%clk 0:03:00]}  Nf6 {[%clk 0:02:59]} 2. c4 {[%clk 0:03:01]}  e6 {[%clk 0:02:59]} 3. Nc3 {[%clk 0:03:01]}  d5 {[%clk 0:03:00]} 4. cxd5 {[%clk 0:03:01]}  Nxd5 {[%clk 0:03:01]} 5. e4 {[%clk 0:03:00]}  Nxc3 {[%clk 0:03:01]} 6. bxc3 {[%clk 0:03:01]}  c5 {[%clk 0:03:02]} 7. a3 {[%clk 0:03:01]}  cxd4 {[%clk 0:02:58]} 8. cxd4 {[%clk 0:03:02]}  e5 {[%clk 0:02:58]} 9. d5 {[%clk 0:03:02]}  Bd6 {[%clk 0:02:53]} 10. Nf3 {[%clk 0:02:59]}  O-O {[%clk 0:02:53]} 11. Be2 {[%clk 0:02:55]}  Nd7 {[%clk 0:02:50]} 12. O-O {[%clk 0:02:55]}  Nc5 {[%clk 0:02:50]} 13. Nd2 {[%clk 0:02:52]}  Qh4 {[%clk 0:02:32]} 14. f3 {[%clk 0:02:30]}  Nd7 {[%clk 0:02:17]} 15. Nc4 {[%clk 0:02:13]}  Bc5+ {[%clk 0:02:14]} 16. Be3 {[%clk 0:02:13]}  Bxe3+ {[%clk 0:01:59]} 17. Nxe3 {[%clk 0:02:14]}  Nc5 {[%clk 0:01:58]} 18. Nc4 {[%clk 0:02:08]}  Re8 {[%clk 0:01:47]} 19. Rc1 {[%clk 0:02:01]}  b6 {[%clk 0:01:43]} 20. Nd6 {[%clk 0:01:54]}  Rd8 {[%clk 0:01:38]} 21. Nb5 {[%clk 0:01:47]}  Ba6 {[%clk 0:01:33]} 22. Nc7 {[%clk 0:01:35]}  Bxe2 {[%clk 0:01:30]} 23. Qxe2 {[%clk 0:01:36]}  Rac8 {[%clk 0:01:30]} 24. Na6 {[%clk 0:01:33]}  Qe7 {[%clk 0:01:18]} 25. Nxc5 {[%clk 0:01:26]}  Rxc5 {[%clk 0:01:13]} 26. Qe3 {[%clk 0:01:15]}  Rdc8 {[%clk 0:01:00]} 27. Rxc5 {[%clk 0:01:15]}  Qxc5 {[%clk 0:00:55]} 28. Qxc5 {[%clk 0:01:04]}  Rxc5 {[%clk 0:00:55]} 29. Rd1 {[%clk 0:01:03]}  Kf8 {[%clk 0:00:52]} 30. Rd3 {[%clk 0:00:59]}  Ke7 {[%clk 0:00:49]} 31. Kf2 {[%clk 0:00:59]}  Kd6 {[%clk 0:00:46]} 32. h4 {[%clk 0:00:58]}  h5 {[%clk 0:00:44]} 33. g4 {[%clk 0:00:56]}  g6 {[%clk 0:00:39]} 34. gxh5 {[%clk 0:00:40]}  gxh5 {[%clk 0:00:39]} 35. Ke3 {[%clk 0:00:41]}  b5 {[%clk 0:00:37]} 36. f4 {[%clk 0:00:33]}  f6 {[%clk 0:00:35]} 37. f5 {[%clk 0:00:32]}  a5 {[%clk 0:00:33]} 38. Rb3 {[%clk 0:00:31]}  a4 {[%clk 0:00:27]} 39. Rb2 {[%clk 0:00:23]}  Rc3+ {[%clk 0:00:23]} 40. Kd2 {[%clk 0:00:24]}  Rxa3 {[%clk 0:00:22]} 41. Rxb5 {[%clk 0:00:23]}  Rh3 {[%clk 0:00:21]} 42. Rb6+ {[%clk 0:00:21]}  Kd7 {[%clk 0:00:18]} 43. Rxf6 {[%clk 0:00:15]}  Rxh4 {[%clk 0:00:18]} 44. Kd3 {[%clk 0:00:15]}  a3 {[%clk 0:00:17]} 45. Ra6 {[%clk 0:00:14]}  Rh3+ {[%clk 0:00:16]} 46. Kc4 {[%clk 0:00:14]}  Re3 {[%clk 0:00:15]} 47. Kc5 {[%clk 0:00:06]}  Rxe4 {[%clk 0:00:15]} 48. Ra7+ {[%clk 0:00:05]}  Kc8 {[%clk 0:00:15]} 49. f6 {[%clk 0:00:03]}  Rf4 {[%clk 0:00:14]} 50. f7 {[%clk 0:00:03]}  a2 {[%clk 0:00:14]} 51. Kd6 {[%clk 0:00:02]}  a1=Q {[%clk 0:00:12]} 52. Rxa1 {[%clk 0:00:02]}  Rxf7 {[%clk 0:00:12]} 53. Kxe5 {[%clk 0:00:02]}  h4 {[%clk 0:00:12]} 54. d6 {[%clk 0:00:02]}  Rf2 {[%clk 0:00:08]} 55. Rc1+ {[%clk 0:00:02]}  Kd7 {[%clk 0:00:07]} 56. Rh1 {[%clk 0:00:03]}  Re2+ {[%clk 0:00:07]} 57. Kf4 {[%clk 0:00:03]}  Kxd6 {[%clk 0:00:06]} 58. Rxh4 {[%clk 0:00:03]}  Re6 {[%clk 0:00:06]} 59. Rg4 {[%clk 0:00:04]}  Ke7 {[%clk 0:00:06]} 60. Rg5 {[%clk 0:00:04]}  Rf6+ {[%clk 0:00:07]} 61. Rf5 {[%clk 0:00:04]}  Rxf5+ {[%clk 0:00:07]} 62. Kxf5 {[%clk 0:00:05]} 1/2-1/2


[Site "https://www.chess.com"]

[Event "Late Titled Tuesday Blitz February 8 2022"]
[White "Vusatiuk, Vladimir"]
[Black "Kobalia, Mikhail"]
[WhiteFideId "14118610"]
[BlackFideId "4119150"]
[WhiteElo "2157"]
[BlackElo "2667"]
[Result "0-1"]
[Round "07"]
[TimeControl "180+1"]
[Date "2022.02.08"]
[WhiteClock "0:00:07"]
[BlackClock "0:00:02"]

1. d4 {[%clk 0:02:56]}  d5 {[%clk 0:02:57]} 2. c4 {[%clk 0:02:56]}  c6 {[%clk 0:02:58]} 3. cxd5 {[%clk 0:02:57]}  cxd5 {[%clk 0:02:58]} 4. Bf4 {[%clk 0:02:57]}  e6 {[%clk 0:02:58]} 5. Nc3 {[%clk 0:02:56]}  Bd6 {[%clk 0:02:58]} 6. Bxd6 {[%clk 0:02:55]}  Qxd6 {[%clk 0:02:58]} 7. e3 {[%clk 0:02:56]}  Ne7 {[%clk 0:02:57]} 8. Bd3 {[%clk 0:02:48]}  Bd7 {[%clk 0:02:55]} 9. f4 {[%clk 0:02:48]}  Nbc6 {[%clk 0:02:54]} 10. Nf3 {[%clk 0:02:48]}  O-O {[%clk 0:02:50]} 11. O-O {[%clk 0:02:48]}  f6 {[%clk 0:02:46]} 12. Qe1 {[%clk 0:01:55]}  Be8 {[%clk 0:02:45]} 13. Rc1 {[%clk 0:01:50]}  Bg6 {[%clk 0:02:44]} 14. Bxg6 {[%clk 0:01:49]}  Nxg6 {[%clk 0:02:44]} 15. Qg3 {[%clk 0:01:20]}  Nge7 {[%clk 0:02:42]} 16. Qf2 {[%clk 0:01:16]}  Rac8 {[%clk 0:02:38]} 17. a3 {[%clk 0:01:09]}  Na5 {[%clk 0:02:35]} 18. Nd2 {[%clk 0:01:01]}  Qd7 {[%clk 0:02:33]} 19. e4 {[%clk 0:01:01]}  dxe4 {[%clk 0:02:29]} 20. Ndxe4 {[%clk 0:01:01]}  b6 {[%clk 0:02:27]} 21. Rcd1 {[%clk 0:00:47]}  Rfd8 {[%clk 0:02:25]} 22. Rd3 {[%clk 0:00:45]}  Nc4 {[%clk 0:02:23]} 23. Rfd1 {[%clk 0:00:40]}  Nd5 {[%clk 0:02:22]} 24. Rh3 {[%clk 0:00:34]}  Qf7 {[%clk 0:02:19]} 25. Nb5 {[%clk 0:00:18]}  Qg6 {[%clk 0:02:05]} 26. Re1 {[%clk 0:00:11]}  a6 {[%clk 0:02:03]} 27. Nbc3 {[%clk 0:00:11]}  Qf5 {[%clk 0:02:00]} 28. Rf3 {[%clk 0:00:07]}  Rc6 {[%clk 0:01:44]} 29. Ng3 {[%clk 0:00:07]}  Qg6 {[%clk 0:01:41]} 30. f5 {[%clk 0:00:08]}  Qf7 {[%clk 0:01:34]} 31. Nxd5 {[%clk 0:00:08]}  exd5 {[%clk 0:01:20]} 32. b3 {[%clk 0:00:09]}  Nxa3 {[%clk 0:01:18]} 33. Rfe3 {[%clk 0:00:09]}  Rc7 {[%clk 0:01:06]} 34. Re6 {[%clk 0:00:09]}  Rb8 {[%clk 0:00:51]} 35. Qf4 {[%clk 0:00:09]}  Nc2 {[%clk 0:00:39]} 36. Rc1 {[%clk 0:00:08]}  Rbc8 {[%clk 0:00:15]} 37. Rxb6 {[%clk 0:00:07]}  Re8 {[%clk 0:00:15]} 38. h4 {[%clk 0:00:06]}  h5 {[%clk 0:00:13]} 39. Rxa6 {[%clk 0:00:06]}  Rc3 {[%clk 0:00:06]} 40. Nf1 {[%clk 0:00:03]}  Nxd4 {[%clk 0:00:04]} 41. Qxd4 {[%clk 0:00:02]}  Rxc1 {[%clk 0:00:03]} 42. Qd2 {[%clk 0:00:01]}  Ree1 {[%clk 0:00:02]} 43. Ra8+ {[%clk 0:00:01]}  Kh7 {[%clk 0:00:01]} 44. Kh2 {[%clk 0:00:02]}  Rxf1 {[%clk 0:00:02]} 45. Qe2 {[%clk 0:00:02]}  Rxf5 {[%clk 0:00:01]} 46. Qd2 {[%clk 0:00:01]}  Rcf1 {[%clk 0:00:01]} 47. Qe2 {[%clk 0:00:02]}  Qg6 {[%clk 0:00:01]} 48. Qe8 {[%clk 0:00:02]}  Qxe8 {[%clk 0:00:01]} 49. Rxe8 {[%clk 0:00:03]}  Re5 {[%clk 0:00:01]} 50. Kg3 {[%clk 0:00:03]}  Rxe8 {[%clk 0:00:01]} 51. Kh2 {[%clk 0:00:04]}  Rb8 {[%clk 0:00:02]} 52. g4 {[%clk 0:00:05]}  Rxb3 {[%clk 0:00:02]} 53. g5 {[%clk 0:00:06]}  Rf2+ {[%clk 0:00:02]} 54. Kg1 {[%clk 0:00:06]}  Rc2 {[%clk 0:00:03]} 55. g6+ {[%clk 0:00:07]}  Kg8 {[%clk 0:00:02]} 0-1


[Site "https://www.chess.com"]

[Event "Late Titled Tuesday Blitz February 8 2022"]
[White "Wachinger, Guenther"]
[Black "Kosteniuk, Alexandra"]
[WhiteFideId "4604261"]
[BlackFideId "4128125"]
[WhiteElo "2212"]
[BlackElo "2469"]
[Result "1/2-1/2"]
[Round "07"]
[TimeControl "180+1"]
[Date "2022.02.09"]
[WhiteClock "0:00:06"]
[BlackClock "0:00:26"]

1. e4 {[%clk 0:03:00]}  c6 {[%clk 0:03:00]} 2. c4 {[%clk 0:02:59]}  d5 {[%clk 0:02:59]} 3. cxd5 {[%clk 0:03:00]}  cxd5 {[%clk 0:03:00]} 4. exd5 {[%clk 0:03:01]}  Nf6 {[%clk 0:03:00]} 5. Nc3 {[%clk 0:03:02]}  Nxd5 {[%clk 0:03:00]} 6. Nf3 {[%clk 0:03:03]}  Nc6 {[%clk 0:03:00]} 7. Bb5 {[%clk 0:03:02]}  Nxc3 {[%clk 0:02:59]} 8. dxc3 {[%clk 0:02:59]}  Qxd1+ {[%clk 0:02:58]} 9. Kxd1 {[%clk 0:03:00]}  Bd7 {[%clk 0:02:58]} 10. Be3 {[%clk 0:02:57]}  O-O-O {[%clk 0:02:57]} 11. Ke2 {[%clk 0:02:56]}  a6 {[%clk 0:02:44]} 12. Bc4 {[%clk 0:02:52]}  f6 {[%clk 0:02:41]} 13. Rad1 {[%clk 0:02:52]}  e5 {[%clk 0:02:39]} 14. Rd2 {[%clk 0:02:52]}  Bg4 {[%clk 0:02:34]} 15. Rxd8+ {[%clk 0:02:49]}  Nxd8 {[%clk 0:02:32]} 16. h3 {[%clk 0:02:50]}  Bd7 {[%clk 0:02:30]} 17. Rd1 {[%clk 0:02:47]}  Bc6 {[%clk 0:02:30]} 18. Bd5 {[%clk 0:02:47]}  Kc7 {[%clk 0:02:26]} 19. g4 {[%clk 0:02:42]}  Be7 {[%clk 0:02:23]} 20. Nh4 {[%clk 0:02:41]}  g6 {[%clk 0:02:21]} 21. Nf3 {[%clk 0:02:09]}  Bxd5 {[%clk 0:02:16]} 22. Rxd5 {[%clk 0:02:10]}  Nf7 {[%clk 0:02:05]} 23. g5 {[%clk 0:01:58]}  e4 {[%clk 0:01:50]} 24. Nd4 {[%clk 0:01:33]}  fxg5 {[%clk 0:01:50]} 25. c4 {[%clk 0:01:26]}  h6 {[%clk 0:01:43]} 26. Ne6+ {[%clk 0:01:11]}  Kc8 {[%clk 0:01:43]} 27. b3 {[%clk 0:00:51]}  Nd8 {[%clk 0:01:40]} 28. Nxd8 {[%clk 0:00:37]}  Rxd8 {[%clk 0:01:40]} 29. Rxd8+ {[%clk 0:00:37]}  Kxd8 {[%clk 0:01:39]} 30. Bd4 {[%clk 0:00:38]}  Kd7 {[%clk 0:01:38]} 31. Ke3 {[%clk 0:00:38]}  Ke6 {[%clk 0:01:35]} 32. Kxe4 {[%clk 0:00:39]}  h5 {[%clk 0:01:35]} 33. Be3 {[%clk 0:00:37]}  Bf6 {[%clk 0:01:27]} 34. f3 {[%clk 0:00:35]}  Be7 {[%clk 0:01:23]} 35. a4 {[%clk 0:00:35]}  Kd6 {[%clk 0:01:20]} 36. Bd4 {[%clk 0:00:32]}  Ke6 {[%clk 0:01:18]} 37. Be3 {[%clk 0:00:33]}  Bf6 {[%clk 0:01:14]} 38. Bd2 {[%clk 0:00:31]}  Kd6 {[%clk 0:01:13]} 39. Be3 {[%clk 0:00:31]}  Kc6 {[%clk 0:01:13]} 40. b4 {[%clk 0:00:30]}  Kd6 {[%clk 0:01:10]} 41. b5 {[%clk 0:00:27]}  Ke6 {[%clk 0:01:04]} 42. c5 {[%clk 0:00:23]}  axb5 {[%clk 0:01:03]} 43. axb5 {[%clk 0:00:23]}  Be7 {[%clk 0:01:03]} 44. Bd4 {[%clk 0:00:17]}  Bf8 {[%clk 0:00:53]} 45. Be3 {[%clk 0:00:11]}  Be7 {[%clk 0:00:53]} 46. Bd4 {[%clk 0:00:11]}  Bd8 {[%clk 0:00:53]} 47. Be3 {[%clk 0:00:11]}  Bf6 {[%clk 0:00:53]} 48. Bd4 {[%clk 0:00:07]}  Be7 {[%clk 0:00:45]} 49. Be3 {[%clk 0:00:06]}  Bd8 {[%clk 0:00:45]} 50. Bd4 {[%clk 0:00:07]}  Bc7 {[%clk 0:00:38]} 51. Be3 {[%clk 0:00:07]}  Kf6 {[%clk 0:00:38]} 52. Bd4+ {[%clk 0:00:06]}  Ke6 {[%clk 0:00:38]} 53. Be3 {[%clk 0:00:06]}  Bd8 {[%clk 0:00:32]} 54. Bd4 {[%clk 0:00:05]}  Be7 {[%clk 0:00:28]} 55. Be3 {[%clk 0:00:06]}  Bf6 {[%clk 0:00:28]} 56. Bd4 {[%clk 0:00:06]}  Be7 {[%clk 0:00:26]} 1/2-1/2


[Site "https://www.chess.com"]

[Event "Late Titled Tuesday Blitz February 8 2022"]
[White "Weetik, Vjacheslav"]
[Black "Pourkashiyan, Atousa"]
[WhiteFideId "4153472"]
[BlackFideId "12502014"]
[WhiteElo "2469"]
[BlackElo "2247"]
[Result "1-0"]
[Round "07"]
[TimeControl "180+1"]
[Date "2022.02.09"]
[WhiteClock "0:00:16"]
[BlackClock "0:00:08"]

1. d4 {[%clk 0:02:58]}  Nf6 {[%clk 0:02:59]} 2. Bf4 {[%clk 0:02:57]}  e6 {[%clk 0:02:59]} 3. e3 {[%clk 0:02:57]}  d5 {[%clk 0:02:58]} 4. Nd2 {[%clk 0:02:57]}  c5 {[%clk 0:02:58]} 5. c3 {[%clk 0:02:58]}  Nc6 {[%clk 0:02:58]} 6. Bd3 {[%clk 0:02:58]}  Bd6 {[%clk 0:02:58]} 7. Bxd6 {[%clk 0:02:58]}  Qxd6 {[%clk 0:02:58]} 8. f4 {[%clk 0:02:59]}  O-O {[%clk 0:02:50]} 9. Ngf3 {[%clk 0:02:59]}  b6 {[%clk 0:02:43]} 10. O-O {[%clk 0:02:58]}  a5 {[%clk 0:02:43]} 11. Qe2 {[%clk 0:02:58]}  Bb7 {[%clk 0:02:32]} 12. Ne5 {[%clk 0:02:58]}  Ne7 {[%clk 0:02:31]} 13. Rad1 {[%clk 0:02:53]}  Rad8 {[%clk 0:02:11]} 14. Qf3 {[%clk 0:02:40]}  Nf5 {[%clk 0:01:47]} 15. g4 {[%clk 0:02:38]}  Nh4 {[%clk 0:01:47]} 16. Qh3 {[%clk 0:02:35]}  Ng6 {[%clk 0:01:47]} 17. Ndf3 {[%clk 0:02:32]}  Ne4 {[%clk 0:01:38]} 18. Bxe4 {[%clk 0:02:32]}  dxe4 {[%clk 0:01:38]} 19. Ng5 {[%clk 0:02:33]}  h6 {[%clk 0:01:28]} 20. Ngxf7 {[%clk 0:02:27]}  Rxf7 {[%clk 0:01:29]} 21. Nxf7 {[%clk 0:02:20]}  Kxf7 {[%clk 0:01:28]} 22. Qh5 {[%clk 0:02:19]}  Ba6 {[%clk 0:00:43]} 23. f5 {[%clk 0:02:06]}  Bxf1 {[%clk 0:00:40]} 24. Qxg6+ {[%clk 0:02:00]}  Kg8 {[%clk 0:00:35]} 25. f6 {[%clk 0:01:53]}  Qd7 {[%clk 0:00:23]} 26. Rxf1 {[%clk 0:01:46]}  cxd4 {[%clk 0:00:23]} 27. exd4 {[%clk 0:01:32]}  Qf7 {[%clk 0:00:18]} 28. Qxf7+ {[%clk 0:01:25]}  Kxf7 {[%clk 0:00:18]} 29. fxg7+ {[%clk 0:01:26]}  Kxg7 {[%clk 0:00:19]} 30. Re1 {[%clk 0:01:27]}  e5 {[%clk 0:00:17]} 31. Rxe4 {[%clk 0:01:24]}  exd4 {[%clk 0:00:18]} 32. Rxd4 {[%clk 0:01:25]}  Re8 {[%clk 0:00:17]} 33. Kf2 {[%clk 0:01:25]}  Rf8+ {[%clk 0:00:16]} 34. Kg3 {[%clk 0:01:25]}  Re8 {[%clk 0:00:15]} 35. Rd6 {[%clk 0:01:25]}  b5 {[%clk 0:00:14]} 36. Rb6 {[%clk 0:01:23]}  Re5 {[%clk 0:00:11]} 37. Kf4 {[%clk 0:01:17]}  Rc5 {[%clk 0:00:11]} 38. h4 {[%clk 0:01:17]}  Kh7 {[%clk 0:00:11]} 39. h5 {[%clk 0:01:16]}  Kg7 {[%clk 0:00:10]} 40. Rb7+ {[%clk 0:01:17]}  Kf6 {[%clk 0:00:09]} 41. Rh7 {[%clk 0:01:15]}  Rc4+ {[%clk 0:00:09]} 42. Kf3 {[%clk 0:01:15]}  Kg5 {[%clk 0:00:09]} 43. Rg7+ {[%clk 0:01:15]}  Kh4 {[%clk 0:00:10]} 44. Rg6 {[%clk 0:01:15]}  b4 {[%clk 0:00:10]} 45. cxb4 {[%clk 0:01:14]}  Rxb4 {[%clk 0:00:07]} 46. b3 {[%clk 0:01:14]}  a4 {[%clk 0:00:08]} 47. bxa4 {[%clk 0:01:07]}  Rxa4 {[%clk 0:00:08]} 48. Rxh6 {[%clk 0:00:47]}  Rxg4 {[%clk 0:00:06]} 49. Re6 {[%clk 0:00:17]}  Ra4 {[%clk 0:00:05]} 50. Re4+ {[%clk 0:00:17]}  Rxe4 {[%clk 0:00:04]} 51. Kxe4 {[%clk 0:00:18]}  Kxh5 {[%clk 0:00:04]} 52. a4 {[%clk 0:00:14]}  Kg6 {[%clk 0:00:05]} 53. a5 {[%clk 0:00:15]}  Kf7 {[%clk 0:00:06]} 54. a6 {[%clk 0:00:15]}  Ke8 {[%clk 0:00:07]} 55. a7 {[%clk 0:00:16]}  Kd8 {[%clk 0:00:08]} 56. a8=Q+ {[%clk 0:00:16]}  Kc7 {[%clk 0:00:08]} 1-0


[Site "https://www.chess.com"]